lending/lending_fUSD_20241214
["ID","MTS","AMOUNT","RATE_DAILY","PERIOD"]
[345327235,1734151831611,-125.1996737,0.00018818,2]
[345327236,1734151831621,-519.41142244,0.00018847,2]
[345327237,1734151831636,-233.37857756,0.00018847,2]
[345327238,1734151831646,-1000.0,0.0001886,2]
[345327239,1734151831655,-764.54,0.0001888,2]
[345327240,1734151831665,-250.0,0.00018884,2]
[345327241,1734151831674,-158.41509396,0.0001911,2]
[345327242,1734151831684,-2347.17,0.00019194,2]
[345327243,1734151831693,-153.72,0.00019198,2]
[345327244,1734151831703,-2347.17,0.00019199,2]
[345327245,1734151831711,-300.0,0.00019203,2]
[345327246,1734151831721,-1878.39186046,0.00019204,2]
[345327247,1734151831732,-468.77813954,0.00019204,2]
[345327248,1734151831742,-2347.17,0.00019209,2]
[345327249,1734151831751,-2347.17,0.00019214,2]
[345327250,1734151831760,-2347.17,0.00019219,2]
[345327251,1734151831769,-2347.17,0.00019224,2]
[345327252,1734151831780,-2347.17,0.00019229,2]
[345327253,1734151831790,-2347.17,0.00019234,2]
[345327254,1734151831799,-2347.17,0.00019239,2]
[345327255,1734151831809,-2347.17,0.00019245,2]
[345327256,1734151831818,-2347.17,0.0001925,2]
[345327257,1734151831827,-2347.17,0.00019255,2]
[345327258,1734151831836,-510.0,0.00019259,2]
[345327259,1734151831845,-2347.17,0.0001926,2]
[345327260,1734151831854,-2347.17,0.00019265,2]
[345327261,1734151831864,-2347.17,0.0001927,2]
[345327262,1734151831873,-1500.0,0.00019274,2]
[345327263,1734151831884,-4968.94,0.00019274,2]
[345327264,1734151831893,-2347.17,0.00019275,2]
[345327265,1734151831903,-2347.17,0.0001928,2]
[345327266,1734151831912,-2347.17,0.00019285,2]
[345327267,1734151831922,-2347.17,0.0001929,2]
[345327268,1734151831932,-165.41,0.00019321,2]
[345327269,1734151831941,-2756.34,0.00019347,2]
[345327270,1734151831951,-170.04,0.00019454,2]
[345327271,1734151831961,-629.58,0.00019477,2]
[345327272,1734151831971,-250.0,0.00019515,2]
[345327273,1734151831981,-607.18,0.00019554,2]
[345327274,1734151831991,-500.0,0.00019606,2]
[345327275,1734151832000,-500.0,0.00019606,2]
[345327276,1734151832011,-150.0,0.0001963,2]
[345327277,1734151832020,-153.74,0.00019661,2]
[345327278,1734151832030,-19001.0,0.00019662,2]
[345327279,1734151832040,-4928.1900354,0.0001986,2]
[345327280,1734151832050,-165.46,0.00019908,30]
[345327281,1734151832059,-1000.0,0.00019999,2]
[345327282,1734151832069,-1000.0,0.00019999,2]
[345327283,1734151832078,-1000.0,0.00019999,2]
[345327284,1734151832088,-1000.0,0.00019999,2]
[345327285,1734151832097,-1000.0,0.00019999,2]
[345327286,1734151832107,-1000.0,0.00019999,2]
[345327287,1734151832116,-1000.0,0.00019999,2]
[345327288,1734151832126,-280.201,0.0002019,2]
[345327289,1734151832135,-629.58,0.00020197,2]
[345327290,1734151832144,-447.21,0.00020226,2]
[345327291,1734151832154,-8535.9618639,0.00020301,2]
[345327292,1734151832166,-15364.0381361,0.00020301,2]
[345327293,1734151832175,-152.0,0.00020303,3]
[345327294,1734151832185,-680.88,0.00020344,2]
[345327295,1734151832194,-607.18,0.00020532,2]
[345327296,1734151832204,-264.0,0.0002069,2]
[345327297,1734151832213,-500.0,0.00020702,2]
[345327298,1734151832223,-1669.61116275,0.00020889,2]
[345327299,1734151832232,-258.10627929,0.00020893,2]
[345327300,1734151832241,-258.10627929,0.00020895,2]
[345327301,1734151832251,-15169.31055238,0.00020898,2]
[345327302,1734151832260,-4828.26171521,0.000209,2]
[345327303,1734151832272,-9915.25015491,0.000209,2]
[345327304,1734151832284,-425.79868226,0.000209,2]
[345327305,1734151832294,-2352.44572983,0.00020903,2]
[345327306,1734151832305,-1997.21734795,0.00020903,2]
[345327307,1734151832321,-8155.16449173,0.00020903,2]
[345327308,1734151832358,-572.71116103,0.00020903,2]
[345327309,1734151832396,-513.97046935,0.00020903,2]
[345327310,1734151832415,-478.31588386,0.00020903,2]
[345327311,1734151832427,-1099.48546863,0.00020903,2]
[345327312,1734151832436,-1669.61116275,0.00020905,2]
[345327313,1734151832447,-1669.61116275,0.00020911,2]
[345327314,1734151832456,-1669.61116275,0.00020912,2]
[345327315,1734151832465,-1669.61116275,0.00020917,2]
[345327316,1734151832475,-1669.61116285,0.00020917,2]
[345327317,1734151832483,-629.58,0.00020918,2]
[345327318,1734151832493,-258.10627929,0.0002092,2]
[345327319,1734151832503,-200.0,0.0002092,2]
[345327320,1734151832512,-258.10627929,0.0002092,2]
[345327321,1734151832521,-486.29581902,0.00020924,2]
[345327322,1734151832539,-592.36206145,0.00020924,2]
[345327325,1734151837496,-3982.37225498,0.00020924,2]
[345327326,1734151837508,-918.803945,0.00020924,2]
[345327327,1734151837519,-1245.37967442,0.00020924,2]
[345327328,1734151837551,-899.84873347,0.00020924,2]
[345327329,1734151837563,-3950.0,0.00020924,2]
[345327330,1734151837610,-2896.39516468,0.00020924,2]
[345327331,1734151837621,-197.85289936,0.00020924,2]
[345327332,1734151837631,-420.0,0.00020927,2]
[345327333,1734151837641,-284.77791363,0.00020928,2]
[345327334,1734151837652,-760.11063788,0.00020928,2]
[345327335,1734151837719,-14124.42200087,0.00020928,2]
[345327336,1734151837729,-1669.61116285,0.00020928,2]
[345327337,1734151837739,-258.10627929,0.00020931,2]
[345327338,1734151837748,-200.0,0.00020932,2]
[345327339,1734151837757,-1669.61116285,0.00020934,2]
[345327340,1734151837767,-15169.31055238,0.00020938,2]
[345327341,1734151837777,-1669.61116275,0.00020939,2]
[345327342,1734151837786,-200.0,0.0002094,2]
[345327343,1734151837796,-1669.61116285,0.00020941,2]
[345327344,1734151837806,-1669.61116285,0.00020943,2]
[345327345,1734151837815,-200.0,0.00020944,2]
[345327346,1734151837825,-1669.61116285,0.0002095,2]
[345327347,1734151837835,-694.78,0.00020951,2]
[345327348,1734151837844,-150.99,0.00020951,2]
[345327349,1734151837853,-264.0,0.0002097,2]
[345327350,1734151837862,-195.64783166,0.00020973,2]
[345327351,1734151837872,-161.36812628,0.00020995,2]
[345327352,1734151837881,-545.0501,0.00020995,2]
[345327353,1734151837891,-2003.45,0.00021,2]
[345327354,1734151837900,-3000.0,0.0002104,2]
[345327355,1734151837909,-35260.66613119,0.00021049,2]
[345327356,1734151837918,-500.0,0.00021073,2]
[345327357,1734151837927,-500.0,0.00021094,2]
[345327358,1734151837937,-500.0,0.00021094,2]
[345327360,1734151837947,-499.08375275,0.00021094,2]
[345327362,1734151837956,-500.0,0.00021094,2]
[345327364,1734151837965,-500.0,0.00021094,2]
[345327366,1734151837978,-500.0,0.00021094,2]
[345327368,1734151837987,-507.72193999,0.00021094,2]
[345327370,1734151837997,-500.0,0.00021095,3]
[345327372,1734151838006,-500.0,0.00021095,3]
[345327374,1734151838015,-500.0,0.00021095,3]
[345327376,1734151838024,-500.0,0.00021095,3]
[345327378,1734151838035,-507.54042126,0.00021095,3]
[345327380,1734151838044,-500.0,0.00021095,3]
[345327382,1734151838054,-500.0,0.00021095,3]
[345327384,1734151838063,-500.0,0.00021095,3]
[345327386,1734151838073,-500.0,0.00021095,3]
[345327388,1734151838082,-500.0,0.00021095,3]
[345327390,1734151838092,-364.73658131,0.00021095,3]
[345327392,1734151838101,-500.0,0.00021095,3]
[345327394,1734151838110,-500.0,0.00021095,3]
[345327395,1734151838119,-500.0,0.00021095,3]
[345327397,1734151838128,-500.0,0.00021095,3]
[345327399,1734151838137,-500.0,0.00021095,3]
[345327401,1734151838147,-500.0,0.00021095,3]
[345327403,1734151838156,-500.0,0.00021095,3]
[345327404,1734151838165,-500.0,0.00021095,3]
[345327405,1734151838174,-500.0,0.00021095,3]
[345327406,1734151838184,-332.78555708,0.00021095,3]
[345327407,1734151838194,-500.0,0.00021095,3]
[345327408,1734151838203,-500.0,0.00021095,3]
[345327409,1734151838212,-500.0,0.00021095,3]
[345327410,1734151838222,-647.22,0.00021095,3]
[345327411,1734151838232,-500.0,0.00021095,3]
[345327412,1734151838241,-500.0,0.00021095,3]
[345327413,1734151838251,-500.0,0.00021095,3]
[345327414,1734151838260,-500.0,0.00021095,3]
[345327415,1734151838269,-500.0,0.00021095,3]
[345327416,1734151838279,-500.0,0.00021095,3]
[345327417,1734151838288,-500.0,0.00021095,3]
[345327418,1734151838297,-500.0,0.00021095,3]
[345327419,1734151838307,-500.0,0.00021095,3]
[345327420,1734151838318,-500.0,0.00021095,3]
[345327421,1734151838328,-500.0,0.00021095,3]
[345327422,1734151838339,-355.83984138,0.00021095,3]
[345327423,1734151838348,-500.0,0.00021095,3]
[345327424,1734151838358,-500.0,0.00021095,3]
[345327425,1734151838367,-500.0,0.00021095,3]
[345327426,1734151838376,-219.57212334,0.00021095,3]
[345327427,1734151838386,-464.09156922,0.00021095,3]
[345327428,1734151838395,-500.0,0.00021095,3]
[345327429,1734151838404,-500.0,0.00021095,3]
[345327430,1734151838414,-500.0,0.00021095,3]
[345327431,1734151838423,-500.0,0.00021095,3]
[345327432,1734151838432,-500.0,0.00021095,3]
[345327433,1734151838441,-500.0,0.00021095,3]
[345327434,1734151838450,-196.10382717,0.00021095,3]
[345327435,1734151838459,-500.0,0.00021095,3]
[345327436,1734151838468,-500.0,0.00021095,3]
[345327437,1734151838478,-500.0,0.00021095,3]
[345327438,1734151838487,-500.0,0.00021095,3]
[345327439,1734151838496,-242.34493226,0.00021095,3]
[345327440,1734151838506,-500.0,0.00021095,3]
[345327441,1734151838514,-209.50584956,0.00021095,3]
[345327442,1734151838523,-500.0,0.00021095,3]
[345327443,1734151838533,-500.0,0.00021095,3]
[345327444,1734151838542,-500.0,0.00021095,3]
[345327445,1734151838552,-500.0,0.00021095,3]
[345327446,1734151838562,-500.0,0.00021095,3]
[345327447,1734151838571,-500.0,0.00021095,3]
[345327448,1734151838581,-409.72,0.00021095,3]
[345327449,1734151838590,-500.0,0.00021095,3]
[345327450,1734151838601,-500.0,0.00021095,3]
[345327451,1734151838610,-500.0,0.00021095,3]
[345327452,1734151838619,-500.0,0.00021095,3]
[345327453,1734151838628,-500.0,0.00021095,3]
[345327454,1734151838637,-500.0,0.00021095,3]
[345327455,1734151838646,-500.0,0.00021095,3]
[345327456,1734151838655,-500.0,0.00021095,3]
[345327457,1734151838664,-500.0,0.00021095,3]
[345327458,1734151838673,-505.89030715,0.00021095,3]
[345327459,1734151838682,-500.0,0.00021095,3]
[345327460,1734151838691,-500.0,0.00021095,3]
[345327461,1734151838700,-500.0,0.00021095,3]
[345327462,1734151838710,-500.0,0.00021095,3]
[345327463,1734151838719,-500.0,0.00021095,3]
[345327464,1734151838728,-500.0,0.00021095,3]
[345327465,1734151838737,-500.0,0.00021095,3]
[345327466,1734151838747,-500.0,0.00021095,3]
[345327467,1734151838756,-500.0,0.00021095,3]
[345327468,1734151838766,-500.0,0.00021095,3]
[345327469,1734151838776,-500.0,0.00021095,3]
[345327470,1734151838786,-551.67763762,0.00021095,3]
[345327471,1734151838796,-500.0,0.00021095,3]
[345327472,1734151838805,-500.0,0.00021095,3]
[345327473,1734151838814,-500.0,0.00021095,3]
[345327474,1734151838824,-500.0,0.00021095,3]
[345327475,1734151838835,-500.0,0.00021095,3]
[345327476,1734151838843,-500.0,0.00021095,3]
[345327477,1734151838854,-500.0,0.00021095,3]
[345327478,1734151838863,-500.0,0.00021095,3]
[345327479,1734151838873,-500.0,0.00021095,3]
[345327480,1734151838883,-500.0,0.00021095,3]
[345327481,1734151838892,-500.0,0.00021095,3]
[345327482,1734151838901,-500.0,0.00021095,3]
[345327483,1734151838910,-500.0,0.00021095,3]
[345327484,1734151838919,-500.0,0.00021095,3]
[345327485,1734151838928,-500.0,0.00021095,3]
[345327486,1734151838937,-500.0,0.00021095,3]
[345327487,1734151838946,-500.0,0.00021095,3]
[345327488,1734151838956,-500.0,0.00021095,3]
[345327489,1734151838965,-500.0,0.00021095,3]
[345327490,1734151838982,-500.0,0.00021095,3]
[345327491,1734151838995,-620.27546342,0.00021095,3]
[345327492,1734151839007,-500.0,0.00021095,3]
[345327493,1734151839019,-500.0,0.00021095,3]
[345327494,1734151839029,-500.0,0.00021095,3]
[345327495,1734151839040,-500.0,0.00021095,3]
[345327496,1734151839051,-361.31624584,0.00021095,3]
[345327497,1734151839061,-500.0,0.00021095,3]
[345327498,1734151839071,-500.0,0.00021095,3]
[345327499,1734151839083,-500.0,0.00021095,3]
[345327500,1734151839095,-626.65,0.00021095,3]
[345327501,1734151839107,-500.0,0.00021095,3]
[345327502,1734151839118,-500.0,0.00021095,3]
[345327503,1734151839130,-500.0,0.00021095,3]
[345327504,1734151839141,-500.0,0.00021095,3]
[345327505,1734151839153,-500.0,0.00021095,3]
[345327506,1734151839165,-500.0,0.00021095,3]
[345327507,1734151839176,-500.0,0.00021095,3]
[345327508,1734151839187,-500.0,0.00021095,3]
[345327509,1734151839199,-606.9704423,0.00021095,3]
[345327510,1734151839210,-500.0,0.00021095,3]
[345327511,1734151839222,-500.0,0.00021095,3]
[345327512,1734151839232,-500.0,0.00021095,3]
[345327513,1734151839243,-500.0,0.00021095,3]
[345327514,1734151839254,-500.0,0.00021095,3]
[345327515,1734151839265,-500.0,0.00021095,3]
[345327517,1734151839276,-500.0,0.00021095,3]
[345327518,1734151839288,-502.72970965,0.00021095,3]
[345327519,1734151839301,-500.0,0.00021095,3]
[345327520,1734151839312,-500.0,0.00021095,3]
[345327521,1734151839324,-500.0,0.00021095,3]
[345327522,1734151839336,-500.0,0.00021095,3]
[345327523,1734151839347,-500.0,0.00021095,3]
[345327524,1734151839358,-500.0,0.00021095,3]
[345327525,1734151839369,-500.0,0.00021095,3]
[345327526,1734151839381,-500.0,0.00021095,3]
[345327529,1734151839392,-500.0,0.00021095,3]
[345327530,1734151839403,-500.0,0.00021095,3]
[345327531,1734151839414,-500.0,0.00021095,3]
[345327532,1734151839425,-500.0,0.00021095,3]
[345327533,1734151839436,-504.76587691,0.00021095,3]
[345327534,1734151839448,-500.0,0.00021095,3]
[345327535,1734151839458,-500.0,0.00021095,3]
[345327536,1734151839469,-500.0,0.00021095,3]
[345327537,1734151839480,-500.0,0.00021095,3]
[345327538,1734151839491,-500.0,0.00021095,3]
[345327539,1734151839501,-602.64170731,0.00021095,3]
[345327540,1734151839513,-500.0,0.00021095,3]
[345327541,1734151839523,-500.0,0.00021095,3]
[345327542,1734151839534,-500.0,0.00021095,3]
[345327543,1734151839545,-500.0,0.00021095,3]
[345327544,1734151839555,-449.99394256,0.00021095,3]
[345327545,1734151839566,-500.0,0.00021095,3]
[345327546,1734151839577,-500.0,0.00021095,3]
[345327547,1734151839590,-500.98456847,0.00021095,3]
[345327548,1734151839601,-500.0,0.00021095,3]
[345327549,1734151839611,-500.0,0.00021095,3]
[345327550,1734151839622,-500.0,0.00021095,3]
[345327551,1734151839632,-164.96,0.00021095,3]
[345327552,1734151839643,-500.0,0.00021095,3]
[345327553,1734151839653,-500.0,0.00021095,3]
[345327554,1734151839663,-500.0,0.00021095,3]
[345327555,1734151839674,-567.64,0.00021095,3]
[345327556,1734151839684,-500.0,0.00021095,3]
[345327557,1734151839694,-407.87963078,0.00021095,3]
[345327558,1734151839705,-500.0,0.00021095,3]
[345327559,1734151839717,-500.0,0.00021095,3]
[345327560,1734151839729,-500.0,0.00021095,3]
[345327561,1734151839739,-500.0,0.00021095,3]
[345327562,1734151839750,-500.0,0.00021095,3]
[345327563,1734151839760,-500.0,0.00021095,3]
[345327564,1734151839770,-500.0,0.00021095,3]
[345327565,1734151839780,-500.0,0.00021095,3]
[345327566,1734151839790,-500.0,0.00021095,3]
[345327567,1734151839800,-500.0,0.00021095,3]
[345327568,1734151839811,-500.0,0.00021095,3]
[345327569,1734151839822,-500.0,0.00021095,3]
[345327570,1734151839834,-500.0,0.00021095,3]
[345327571,1734151839845,-500.0,0.00021095,3]
[345327572,1734151839855,-500.0,0.00021095,3]
[345327573,1734151839865,-500.0,0.00021095,3]
[345327574,1734151839875,-500.0,0.00021095,3]
[345327575,1734151839885,-500.0,0.00021095,3]
[345327576,1734151839895,-500.0,0.00021095,3]
[345327577,1734151839905,-500.0,0.00021095,3]
[345327578,1734151839915,-500.0,0.00021095,3]
[345327579,1734151839926,-531.11210084,0.00021095,3]
[345327580,1734151839936,-500.0,0.00021095,3]
[345327581,1734151839946,-500.0,0.00021095,3]
[345327582,1734151839957,-500.0,0.00021095,3]
[345327583,1734151839966,-500.0,0.00021095,3]
[345327584,1734151839980,-500.0,0.00021095,3]
[345327586,1734151839990,-500.0,0.00021095,3]
[345327587,1734151840000,-500.0,0.00021095,3]
[345327588,1734151840011,-500.0,0.00021095,3]
[345327589,1734151840022,-500.0,0.00021095,3]
[345327590,1734151840032,-500.0,0.00021095,3]
[345327591,1734151840043,-311.11475742,0.00021095,3]
[345327592,1734151840053,-500.0,0.00021095,3]
[345327593,1734151840065,-500.0,0.00021095,3]
[345327594,1734151840075,-500.0,0.00021095,3]
[345327595,1734151840085,-500.0,0.00021095,3]
[345327596,1734151840095,-485.28,0.00021095,3]
[345327597,1734151840105,-500.0,0.00021095,3]
[345327598,1734151840115,-500.0,0.00021095,3]
[345327599,1734151840126,-500.0,0.00021095,3]
[345327600,1734151840136,-500.0,0.00021095,3]
[345327601,1734151840146,-500.0,0.00021095,3]
[345327602,1734151840157,-500.0,0.00021095,3]
[345327603,1734151840167,-500.0,0.00021095,3]
[345327604,1734151840178,-500.0,0.00021095,3]
[345327605,1734151840188,-500.0,0.00021095,3]
[345327606,1734151840199,-528.85,0.00021095,3]
[345327607,1734151840211,-500.0,0.00021095,3]
[345327608,1734151840222,-500.0,0.00021095,3]
[345327609,1734151840233,-500.0,0.00021095,3]
[345327610,1734151840243,-500.0,0.00021095,3]
[345327611,1734151840254,-500.0,0.00021095,3]
[345327612,1734151840264,-500.0,0.00021095,3]
[345327613,1734151840275,-500.0,0.00021095,3]
[345327614,1734151840291,-500.0,0.00021095,3]
[345327615,1734151840301,-500.0,0.00021095,3]
[345327616,1734151840311,-500.0,0.00021095,3]
[345327617,1734151840323,-500.0,0.00021095,3]
[345327618,1734151840333,-500.0,0.00021095,3]
[345327619,1734151840343,-500.0,0.00021095,3]
[345327620,1734151840354,-500.0,0.00021095,3]
[345327621,1734151840364,-285.68,0.00021095,3]
[345327622,1734151840374,-500.0,0.00021095,3]
[345327623,1734151840384,-500.0,0.00021095,3]
[345327624,1734151840395,-415.51779045,0.00021095,3]
[345327625,1734151840406,-500.0,0.00021095,3]
[345327626,1734151840416,-500.0,0.00021095,3]
[345327627,1734151840427,-500.0,0.00021095,3]
[345327628,1734151840437,-500.0,0.00021095,3]
[345327629,1734151840448,-500.0,0.00021095,3]
[345327630,1734151840458,-500.0,0.00021095,3]
[345327631,1734151840469,-500.0,0.00021095,3]
[345327632,1734151840479,-500.0,0.00021095,3]
[345327633,1734151840490,-500.0,0.00021095,3]
[345327634,1734151840501,-286.39060646,0.00021095,3]
[345327635,1734151840511,-500.0,0.00021095,3]
[345327636,1734151840522,-500.0,0.00021095,3]
[345327637,1734151840534,-500.0,0.00021095,3]
[345327638,1734151840545,-500.0,0.00021095,3]
[345327639,1734151840555,-500.0,0.00021095,3]
[345327640,1734151840567,-500.0,0.00021095,3]
[345327641,1734151840578,-500.0,0.00021095,3]
[345327642,1734151840588,-500.0,0.00021095,3]
[345327643,1734151840599,-500.0,0.00021095,3]
[345327644,1734151840610,-500.0,0.00021095,3]
[345327645,1734151840622,-500.0,0.00021095,3]
[345327646,1734151840633,-638.2,0.00021095,3]
[345327647,1734151840643,-500.0,0.00021095,3]
[345327648,1734151840654,-500.0,0.00021095,3]
[345327649,1734151840664,-500.0,0.00021095,3]
[345327650,1734151840674,-500.0,0.00021095,3]
[345327651,1734151840685,-500.0,0.00021095,3]
[345327652,1734151840696,-500.0,0.00021095,3]
[345327653,1734151840707,-607.58489902,0.00021095,3]
[345327654,1734151840718,-500.0,0.00021095,3]
[345327655,1734151840728,-249.3,0.00021095,3]
[345327656,1734151840739,-500.0,0.00021095,3]
[345327657,1734151840750,-500.0,0.00021095,3]
[345327658,1734151840760,-500.0,0.00021095,3]
[345327659,1734151840771,-500.0,0.00021095,3]
[345327660,1734151840783,-500.0,0.00021095,3]
[345327661,1734151840794,-500.0,0.00021095,3]
[345327662,1734151840805,-500.0,0.00021095,3]
[345327663,1734151840815,-500.0,0.00021095,3]
[345327664,1734151840826,-500.0,0.00021095,3]
[345327665,1734151840837,-584.75,0.00021095,3]
[345327666,1734151840848,-500.0,0.00021095,3]
[345327667,1734151840859,-500.0,0.00021095,3]
[345327668,1734151840869,-500.0,0.00021095,3]
[345327669,1734151840879,-500.0,0.00021095,3]
[345327670,1734151840889,-936.86,0.00021095,3]
[345327671,1734151840899,-936.86,0.00021095,3]
[345327672,1734151840909,-936.86,0.00021095,3]
[345327673,1734151840919,-936.86,0.00021095,3]
[345327674,1734151840930,-936.86,0.00021095,3]
[345327675,1734151840940,-936.86,0.00021095,3]
[345327676,1734151840950,-936.86,0.00021095,3]
[345327677,1734151840960,-514.12661889,0.00021095,3]
[345327678,1734151840971,-500.0,0.00021095,3]
[345327679,1734151840985,-500.0,0.00021095,3]
[345327680,1734151840995,-500.0,0.00021095,3]
[345327681,1734151841006,-566.48,0.00021095,3]
[345327682,1734151841016,-500.0,0.00021095,3]
[345327683,1734151841027,-500.0,0.00021095,3]
[345327684,1734151841040,-500.0,0.00021095,3]
[345327685,1734151841052,-500.0,0.00021095,3]
[345327686,1734151841063,-500.0,0.00021095,3]
[345327687,1734151841073,-500.0,0.00021095,3]
[345327688,1734151841084,-500.0,0.00021095,3]
[345327689,1734151841094,-500.0,0.00021095,3]
[345327690,1734151841104,-286.56,0.00021095,3]
[345327691,1734151841115,-500.0,0.00021095,7]
[345327692,1734151841125,-500.0,0.00021095,3]
[345327693,1734151841136,-500.0,0.00021095,3]
[345327694,1734151841146,-500.0,0.00021095,3]
[345327695,1734151841157,-500.0,0.00021095,3]
[345327696,1734151841167,-500.0,0.00021095,3]
[345327697,1734151841178,-500.0,0.00021095,3]
[345327698,1734151841438,-500.0,0.00021095,3]
[345327699,1734151841448,-500.0,0.00021095,3]
[345327700,1734151841457,-500.0,0.00021095,3]
[345327701,1734151841467,-628.6,0.00021095,3]
[345327702,1734151841476,-504.6283433,0.00021095,3]
[345327703,1734151841486,-520.94227708,0.00021095,3]
[345327704,1734151841496,-500.0,0.00021095,3]
[345327705,1734151841505,-647.99998979,0.00021095,3]
[345327706,1734151841514,-500.0,0.00021095,3]
[345327707,1734151841524,-500.0,0.00021095,3]
[345327708,1734151841534,-500.0,0.00021095,3]
[345327709,1734151841543,-500.0,0.00021095,3]
[345327710,1734151841553,-500.0,0.00021095,3]
[345327711,1734151841563,-500.0,0.00021095,3]
[345327712,1734151841573,-556.76639497,0.00021095,3]
[345327713,1734151841582,-500.0,0.00021095,3]
[345327714,1734151841592,-500.0,0.00021095,3]
[345327715,1734151841601,-500.0,0.00021095,3]
[345327716,1734151841610,-500.0,0.00021095,3]
[345327717,1734151841620,-367.12,0.00021095,3]
[345327718,1734151841630,-500.0,0.00021095,3]
[345327719,1734151841639,-500.0,0.00021095,3]
[345327720,1734151841648,-441.0,0.00021095,3]
[345327721,1734151841657,-500.0,0.00021095,3]
[345327722,1734151841667,-500.0,0.00021095,3]
[345327723,1734151841676,-500.0,0.00021095,3]
[345327724,1734151841685,-500.0,0.00021095,3]
[345327725,1734151841695,-500.0,0.00021095,3]
[345327726,1734151841705,-500.0,0.00021095,3]
[345327727,1734151841714,-500.0,0.00021095,3]
[345327728,1734151841723,-500.0,0.00021095,3]
[345327729,1734151841733,-500.0,0.00021095,3]
[345327730,1734151841742,-543.24,0.00021095,3]
[345327731,1734151841751,-500.0,0.00021095,3]
[345327732,1734151841761,-500.0,0.00021095,3]
[345327733,1734151841771,-500.0,0.00021095,3]
[345327734,1734151841780,-500.0,0.00021095,3]
[345327735,1734151841791,-500.0,0.00021095,3]
[345327736,1734151841801,-500.0,0.00021095,3]
[345327737,1734151841811,-500.0,0.00021095,3]
[345327738,1734151841820,-500.0,0.00021095,3]
[345327739,1734151841829,-500.0,0.00021095,3]
[345327740,1734151841838,-500.0,0.00021095,3]
[345327741,1734151841848,-534.24944221,0.00021095,3]
[345327742,1734151841857,-500.0,0.00021095,3]
[345327743,1734151841866,-500.0,0.00021095,3]
[345327744,1734151841876,-500.0,0.00021095,3]
[345327745,1734151841886,-500.0,0.00021095,3]
[345327746,1734151841896,-500.0,0.00021095,3]
[345327747,1734151841906,-500.0,0.00021095,3]
[345327748,1734151841915,-500.0,0.00021095,3]
[345327749,1734151841924,-209.84,0.00021095,3]
[345327750,1734151841933,-500.0,0.00021095,3]
[345327751,1734151841943,-500.0,0.00021095,3]
[345327752,1734151841952,-500.0,0.00021095,3]
[345327753,1734151841962,-500.0,0.00021095,3]
[345327754,1734151841973,-500.0,0.00021095,3]
[345327755,1734151841985,-500.0,0.00021095,3]
[345327756,1734151841995,-531.25,0.00021095,3]
[345327757,1734151842004,-500.0,0.00021095,3]
[345327758,1734151842015,-500.0,0.00021095,3]
[345327759,1734151842024,-500.0,0.00021095,3]
[345327760,1734151842035,-500.0,0.00021095,3]
[345327761,1734151842045,-500.0,0.00021095,3]
[345327762,1734151842056,-500.0,0.00021095,3]